fUST/lending_fUST_20250627
["ID","MTS","AMOUNT","RATE_DAILY","PERIOD"]
[368117479,1751028659772,-150.0,0.00021918,2]
[368117480,1751028659787,-187.91293387,0.00021934,2]
[368117481,1751028659799,-10118.81432848,0.00021969,6]
[368117482,1751028659810,-500.0,0.00021973,2]
[368117483,1751028659946,-500.0,0.00021973,2]
[368117484,1751028659965,-500.60150751,0.00021973,2]
[368117485,1751028659975,-198.78382991,0.00021973,2]
[368117486,1751028659984,-500.0,0.00021973,2]
[368117487,1751028659993,-500.0,0.00021973,2]
[368117488,1751028660003,-500.0,0.00021973,2]
[368117489,1751028660014,-500.0,0.00021973,2]
[368117490,1751028660024,-617.83311831,0.00021973,2]
[368117491,1751028660033,-500.0,0.00021973,2]
[368117492,1751028660044,-500.0,0.00021973,2]
[368117493,1751028660054,-500.0,0.00021973,2]
[368117494,1751028660065,-500.0,0.00021973,2]
[368117495,1751028660075,-500.0,0.00021973,2]
[368117496,1751028660085,-500.0,0.00021973,2]
[368117497,1751028660095,-500.0,0.00021973,2]
[368117498,1751028660106,-500.83643733,0.00021973,2]
[368117499,1751028660117,-322.77956311,0.00021973,2]
[368117500,1751028660127,-500.0,0.00021973,2]
[368117501,1751028660137,-500.0,0.00021973,2]
[368117502,1751028660147,-500.0,0.00021973,2]
[368117503,1751028660156,-500.0,0.00021973,2]
[368117504,1751028660166,-500.0,0.00021973,2]
[368117505,1751028660175,-500.0,0.00021973,2]
[368117506,1751028660185,-500.0,0.00021973,2]
[368117507,1751028660195,-500.0,0.00021973,2]
[368117508,1751028660204,-500.0,0.00021973,2]
[368117509,1751028660214,-500.0,0.00021973,2]
[368117510,1751028660223,-504.06017893,0.00021973,2]
[368117511,1751028660232,-237.871569,0.00021973,7]
[368117512,1751028660242,-237.871569,0.00021973,7]
[368117513,1751028660252,-5164.0,0.00021978,2]
[368117514,1751028660261,-200.0,0.00021999,2]
[368117515,1751028660270,-200.0,0.00021999,2]
[368117516,1751028660280,-42255.00915418,0.00022,2]
[368117517,1751028660291,-7370.65548769,0.00022,2]
[368117518,1751028660300,-6687.72296349,0.00022,2]
[368117519,1751028660451,-292.63729605,0.00022,2]
[368117520,1751028660559,-460.0,0.00019452,2]
[368117521,1751028660570,-460.0,0.00019726,2]
[368117522,1751028660580,-460.0,0.0002,2]
[368117523,1751028660590,-8008.4775056,0.00022,2]
[368117524,1751028660880,-460.0,0.00019178,2]
[368117525,1751028660891,-460.0,0.00020273,2]
[368117526,1751028660901,-460.0,0.00020547,2]
[368117527,1751028660911,-460.0,0.00020821,2]
[368117528,1751028660920,-460.0,0.00021095,2]
[368117529,1751028660930,-460.0,0.00021369,2]
[368117530,1751028660940,-460.0,0.00021643,2]
[368117531,1751028660951,-269.72,0.00021917,2]
[368117532,1751028660961,-12327.84332,0.00022,2]
[368117533,1751028660974,-12127.67715597,0.00022,2]
[368117534,1751028660987,-1360.95259135,0.00022,2]
[368117535,1751028661000,-4437.07270901,0.00022,2]
[368117536,1751028661012,-1126.365,0.00022,2]
[368117537,1751028661025,-300.83,0.00022,2]
[368117538,1751028661056,-460.0,0.00019178,2]
[368117539,1751028661066,-150.0,0.00021119,2]
[368117540,1751028661075,-13242.11543143,0.00022,2]
[368117541,1751028661087,-1396.4999999,0.00022,2]
[368117542,1751028661099,-254.88887083,0.00022,2]
[368117543,1751028661111,-10338.1250022,0.00022,2]
[368117544,1751028661122,-1016.66773487,0.00022,2]
[368117545,1751028661847,151.48066625,0.00019,2]
[368117546,1751028661890,158.0,0.000191,2]
[368117547,1751028668147,5000.0,0.000191,2]
[368117551,1751028742858,4148.31791585,0.000191,2]
[368117552,1751028751153,8921.56132166,0.00018989,2]
[368117553,1751028751175,1078.43867834,0.00018989,2]
[368117555,1751028805947,5000.0,0.000191,2]
[368117556,1751028822276,3642.95810395,0.000191,2]
[368117558,1751028868195,5000.0,0.000191,2]
[368117559,1751028884676,168.98752702,0.00019078,2]
[368117560,1751028936098,2087.1298384,0.00018551,2]
[368117561,1751028979981,290.2870075,0.00018412,2]
[368117562,1751028998549,2732.19884479,0.00018412,2]
[368117563,1751028998573,20000.0,0.00018412,2]
[368117564,1751028998596,2167.80115521,0.00018412,2]
[368117565,1751029008805,161.335017,0.00018412,2]
[368117568,1751029052470,3301.84523615,0.000191,2]
[368117571,1751029124990,168.98752701,0.00019078,2]
[368117573,1751029178251,1283.0,0.00018982,2]
[368117574,1751029233991,609.824186,0.000191,2]
[368117577,1751029300047,872.6993768,0.00018414,2]
[368117578,1751029350407,168.98752701,0.00019078,2]
[368117579,1751029371099,1689.08295757,0.000191,2]
[368117580,1751029463940,5328.6096762,0.00018278,2]
[368117581,1751029541115,-151.012141,0.00019166,2]
[368117582,1751029541137,-363.56,0.00019168,3]
[368117583,1751029541157,-1198.43588094,0.00019176,2]
[368117584,1751029543781,220.6709439,0.00018355,2]
[368117585,1751029558197,-1.56411906,0.00019176,2]
[368117586,1751029558217,-1200.0,0.00019177,2]
[368117587,1751029558239,-300.0,0.00019177,2]
[368117588,1751029558260,-300.0,0.00019177,2]
[368117589,1751029558280,-11.07992217,0.00019178,2]
[368117590,1751029566598,168.98752701,0.00019078,2]
[368117593,1751029753348,582.9941423,0.00018412,2]
[368117594,1751029771863,168.98752701,0.00019078,2]
[368117595,1751029781609,3106.18720083,0.00018415,2]
[368117596,1751029781631,6893.81279917,0.00018415,2]
[368117598,1751029800193,3595.48018305,0.000191,2]
[368117599,1751029804645,157.976659,0.00013699,2]
[368117611,1751029831845,-1200.0,0.00019177,2]
[368117612,1751029831855,-300.0,0.00019177,2]
[368117613,1751029831865,-469.0,0.00019177,2]
[368117614,1751029831876,-448.92007783,0.00019178,2]
[368117615,1751029831885,-460.0,0.00019178,2]
[368117616,1751029831895,-460.8825842,0.00019178,2]
[368117617,1751029831905,-460.0,0.00019178,2]
[368117618,1751029831914,-460.89159883,0.00019178,2]
[368117619,1751029831924,-461.75892076,0.00019178,2]
[368117620,1751029831934,-501.41690487,0.00019178,2]
[368117621,1751029831943,-461.1840628,0.00019178,2]
[368117622,1751029831956,-460.0,0.00019178,2]
[368117623,1751029831965,-125.59860916,0.00019178,2]
[368117624,1751029831979,-334.84473736,0.00019178,2]
[368117625,1751029831989,-347.48069563,0.00019178,2]
[368117626,1751029832002,-112.51930437,0.00019178,2]
[368117627,1751029832011,-460.0,0.00019178,2]
[368117628,1751029832020,-460.0,0.00019178,2]
[368117629,1751029832029,-460.0,0.00019178,2]
[368117630,1751029832039,-337.92204327,0.00019178,2]
[368117631,1751029832051,-109.7179891,0.00019178,2]
[368117632,1751029832060,-460.0,0.00019178,2]
[368117633,1751029832069,-20.69162141,0.00019178,2]
[368117634,1751029832081,-439.30837859,0.00019178,2]
[368117635,1751029832090,-460.0,0.00019178,2]
[368117636,1751029832099,-460.0,0.00019178,2]
[368117637,1751029832108,-474.1359771,0.00019178,2]
[368117638,1751029832118,-499.55434627,0.00019178,2]
[368117639,1751029832127,-460.0,0.00019178,2]
[368117640,1751029832136,-461.6084152,0.00019178,2]
[368117641,1751029832145,-275.02419092,0.00019178,2]
[368117642,1751029832154,-460.0,0.00019178,2]
[368117643,1751029832164,-460.0,0.00019178,2]
[368117644,1751029832173,-460.0,0.00019178,2]
[368117645,1751029832182,-404.99636699,0.00019178,2]
[368117646,1751029832191,-436.16138659,0.00019178,2]
[368117647,1751029832201,-463.28305175,0.00019178,2]
[368117648,1751029832210,-241.33062452,0.00019178,2]
[368117649,1751029832219,-460.83812807,0.00019178,2]
[368117650,1751029832229,-460.0,0.00019178,2]
[368117651,1751029832239,-460.0,0.00019178,2]
[368117652,1751029832249,-460.0,0.00019178,2]
[368117653,1751029832258,-462.59479522,0.00019178,2]
[368117654,1751029832267,-460.0,0.00019178,2]
[368117655,1751029832277,-447.42432569,0.00019178,2]
[368117656,1751029832286,-460.0,0.00019178,2]
[368117657,1751029832295,-460.0,0.00019178,2]
[368117658,1751029832305,-413.4388321,0.00019178,2]
[368117659,1751029832314,-442.30874463,0.00019178,2]
[368117660,1751029832323,-460.0,0.00019178,2]
[368117661,1751029832333,-433.67578064,0.00019178,2]
[368117662,1751029832343,-460.0,0.00019178,2]
[368117663,1751029832353,-460.0,0.00019178,2]
[368117664,1751029832362,-463.87843467,0.00019178,2]
[368117665,1751029832372,-28.78429868,0.00019178,2]
[368117666,1751029832384,-330.18075368,0.00019178,2]
[368117667,1751029832394,-458.22078112,0.00019178,2]
[368117668,1751029832403,-279.56622079,0.00019178,2]
[368117669,1751029832418,-720.43377921,0.00019178,2]
[368117670,1751029832427,-460.0,0.00019178,2]
[368117671,1751029832437,-440.0,0.00019178,2]
[368117672,1751029832446,-460.0,0.00019178,2]
[368117673,1751029832455,-460.0,0.00019178,2]
[368117674,1751029832464,-460.0,0.00019178,2]
[368117675,1751029832474,-460.0,0.00019178,2]
[368117676,1751029832484,-432.55554105,0.00019178,2]
[368117677,1751029832493,-500.0,0.00019178,2]
[368117678,1751029832503,-500.0,0.00019178,2]
[368117679,1751029832513,-500.0,0.00019178,2]
[368117680,1751029832522,-500.0,0.00019178,2]
[368117681,1751029832531,-500.0,0.00019178,2]
[368117682,1751029832541,-500.0,0.00019178,2]
[368117683,1751029832551,-460.0,0.00019178,2]
[368117684,1751029832561,-460.0,0.00019178,2]
[368117685,1751029832571,-460.0,0.00019178,2]
[368117686,1751029832580,-460.48778507,0.00019178,2]
[368117687,1751029832589,-333.63538196,0.00019178,2]
[368117688,1751029832599,-460.0,0.00019178,2]
[368117689,1751029832608,-460.0,0.00019178,2]
[368117690,1751029832618,-460.0,0.00019178,2]
[368117691,1751029832627,-460.0,0.00019178,2]
[368117692,1751029832637,-307.36143173,0.00019178,2]
[368117693,1751029832647,-460.0,0.00019178,2]
[368117694,1751029832657,-460.0,0.00019178,2]
[368117695,1751029832667,-460.0,0.00019178,2]
[368117696,1751029832676,-594.41911813,0.00019178,2]
[368117697,1751029832686,-510.59,0.00019178,2]
[368117698,1751029832696,-466.13951261,0.00019178,2]
[368117699,1751029832705,-460.0,0.00019178,2]
[368117700,1751029832715,-460.0,0.00019178,2]
[368117701,1751029832725,-460.0,0.00019178,2]
[368117702,1751029832735,-460.0,0.00019178,2]
[368117703,1751029832744,-460.0,0.00019178,2]
[368117704,1751029832754,-460.0,0.00019178,2]
[368117705,1751029832764,-460.0,0.00019178,2]
[368117706,1751029832774,-460.0,0.00019178,2]
[368117707,1751029832784,-460.0,0.00019178,2]
[368117708,1751029832794,-460.0,0.00019178,2]
[368117709,1751029832804,-460.0,0.00019178,2]
[368117710,1751029832814,-460.0,0.00019178,2]
[368117711,1751029832824,-460.0,0.00019178,2]
[368117712,1751029832838,-460.0,0.00019178,2]
[368117713,1751029832849,-460.0,0.00019178,2]
[368117714,1751029832859,-183.40520964,0.00019178,2]
[368117715,1751029832869,-460.0,0.00019178,2]
[368117716,1751029832879,-452.3345428,0.00019178,2]
[368117717,1751029832889,-460.0,0.00019178,2]
[368117718,1751029832898,-460.0,0.00019178,2]
[368117719,1751029832908,-460.0,0.00019178,2]
[368117720,1751029832918,-460.0,0.00019178,2]
[368117721,1751029832928,-467.51926722,0.00019178,2]
[368117722,1751029832938,-461.25967543,0.00019178,2]
[368117723,1751029832948,-460.0,0.00019178,2]
[368117724,1751029832958,-460.0,0.00019178,2]
[368117725,1751029832967,-460.0,0.00019178,2]
[368117726,1751029832977,-460.0,0.00019178,2]
[368117727,1751029832986,-460.0,0.00019178,2]
[368117728,1751029832997,-460.0,0.00019178,2]
[368117729,1751029833007,-460.0,0.00019178,2]
[368117730,1751029833017,-460.0,0.00019178,2]
[368117731,1751029833026,-460.0,0.00019178,2]
[368117732,1751029833036,-460.0,0.00019178,2]
[368117733,1751029833046,-460.0,0.00019178,2]
[368117734,1751029833056,-460.0,0.00019178,2]
[368117735,1751029833067,-460.0,0.00019178,2]
[368117736,1751029833076,-460.0,0.00019178,2]
[368117737,1751029833085,-460.0,0.00019178,2]
[368117738,1751029833095,-460.0,0.00019178,2]
[368117739,1751029833104,-460.0,0.00019178,2]
[368117740,1751029833113,-460.0,0.00019178,2]
[368117741,1751029833123,-253.80761887,0.00019178,2]
[368117742,1751029833132,-460.0,0.00019178,2]
[368117743,1751029833143,-500.0,0.00019178,2]
[368117744,1751029833153,-458.27456262,0.00019178,2]
[368117745,1751029833163,-460.0,0.00019178,2]
[368117746,1751029833172,-503.33895302,0.00019178,2]
[368117747,1751029833181,-460.0,0.00019178,2]
[368117748,1751029833191,-460.0,0.00019178,2]
[368117749,1751029833201,-460.0,0.00019178,2]
[368117750,1751029833210,-510.55289311,0.00019178,2]
[368117751,1751029833219,-460.0,0.00019178,2]
[368117752,1751029833228,-452.34029289,0.00019178,2]
[368117753,1751029833238,-460.0,0.00019178,2]
[368117754,1751029833247,-460.0,0.00019178,2]
[368117755,1751029833257,-460.0,0.00019178,2]
[368117756,1751029833267,-460.0,0.00019178,2]
[368117757,1751029833277,-460.0,0.00019178,2]
[368117758,1751029833287,-460.0,0.00019178,2]
[368117759,1751029833296,-460.0,0.00019178,2]
[368117760,1751029833305,-962.79,0.00019178,2]
[368117761,1751029833325,-179.82199852,0.00019178,2]
[368117762,1751029833336,-460.0,0.00019178,2]
[368117763,1751029833346,-460.0,0.00019178,2]
[368117764,1751029833356,-460.0,0.00019178,2]
[368117765,1751029833367,-460.0,0.00019178,2]
[368117766,1751029833376,-450.40303806,0.00019178,2]
[368117767,1751029833386,-460.0,0.00019178,2]
[368117768,1751029833396,-460.0,0.00019178,2]
[368117769,1751029833406,-460.0,0.00019178,2]
[368117770,1751029833415,-460.0,0.00019178,2]
[368117771,1751029833425,-460.0,0.00019178,2]
[368117772,1751029833435,-390.0,0.00019178,2]
[368117773,1751029833444,-460.0,0.00019178,2]
[368117774,1751029833454,-460.0,0.00019178,2]
[368117775,1751029833463,-460.0,0.00019178,2]
[368117776,1751029833473,-460.0,0.00019178,2]
[368117777,1751029833483,-460.0,0.00019178,2]
[368117778,1751029833493,-460.0,0.00019178,2]
[368117779,1751029833504,-460.0,0.00019178,2]
[368117780,1751029833514,-460.0,0.00019178,2]
[368117781,1751029833524,-460.0,0.00019178,2]
[368117782,1751029833534,-460.0,0.00019178,2]
[368117783,1751029833544,-460.0,0.00019178,2]
[368117784,1751029833554,-460.0,0.00019178,2]
[368117785,1751029833564,-460.0,0.00019178,2]
[368117786,1751029833574,-460.0,0.00019178,2]
[368117787,1751029833584,-460.0,0.00019178,2]
[368117788,1751029833594,-498.61,0.00019178,2]
[368117789,1751029833604,-460.0,0.00019178,2]
[368117790,1751029833613,-460.0,0.00019178,2]
[368117791,1751029833624,-460.0,0.00019178,2]
[368117792,1751029833634,-460.0,0.00019178,2]
[368117793,1751029833644,-460.0,0.00019178,2]
[368117794,1751029833654,-460.0,0.00019178,2]
[368117795,1751029833664,-374.94080551,0.00019178,2]
[368117796,1751029833674,-460.0,0.00019178,2]
[368117797,1751029833684,-292.74875181,0.00019178,2]
[368117798,1751029833694,-460.0,0.00019178,2]
[368117799,1751029833704,-460.0,0.00019178,2]
[368117800,1751029833714,-454.48265313,0.00019178,2]
[368117801,1751029833723,-460.85015021,0.00019178,2]
[368117802,1751029833733,-460.0,0.00019178,2]
[368117803,1751029833742,-463.24,0.00019178,2]
[368117804,1751029833753,-460.0,0.00019178,2]
[368117805,1751029833763,-460.0,0.00019178,2]
[368117806,1751029833773,-460.0,0.00019178,2]
[368117807,1751029833783,-460.0,0.00019178,2]
[368117808,1751029833793,-460.0,0.00019178,2]
[368117809,1751029833803,-460.0,0.00019178,2]
[368117810,1751029833813,-460.0,0.00019178,2]
[368117811,1751029833823,-460.0,0.00019178,2]
[368117812,1751029833839,-460.0,0.00019178,2]
[368117813,1751029833849,-460.0,0.00019178,2]
[368117814,1751029833859,-295.20382296,0.00019178,2]
[368117815,1751029833869,-460.0,0.00019178,2]
[368117816,1751029833881,-460.0,0.00019178,2]
[368117817,1751029833890,-460.0,0.00019178,2]
[368117818,1751029833900,-460.0,0.00019178,2]
[368117819,1751029833910,-461.44746572,0.00019178,2]
[368117820,1751029833920,-460.0,0.00019178,2]
[368117821,1751029833930,-460.0,0.00019178,2]
[368117822,1751029833943,-437.42308816,0.00019178,2]
[368117823,1751029833954,-460.0,0.00019178,2]
[368117824,1751029833963,-460.0,0.00019178,2]
[368117825,1751029833974,-460.0,0.00019178,2]
[368117826,1751029833984,-460.0,0.00019178,2]
[368117827,1751029833994,-460.0,0.00019178,2]
[368117828,1751029834004,-460.0,0.00019178,2]
[368117829,1751029834014,-460.0,0.00019178,2]
[368117830,1751029834024,-460.0,0.00019178,2]
[368117831,1751029834034,-460.0,0.00019178,2]
[368117832,1751029834043,-410.35596139,0.00019178,2]
[368117833,1751029834053,-460.0,0.00019178,2]
[368117834,1751029834064,-419.29738682,0.00019178,2]
[368117835,1751029834074,-460.0,0.00019178,2]
[368117836,1751029834084,-460.0,0.00019178,2]
[368117837,1751029834094,-460.0,0.00019178,2]
[368117838,1751029834104,-460.0,0.00019178,2]
[368117839,1751029834114,-460.0,0.00019178,2]
[368117840,1751029834124,-460.0,0.00019178,2]
[368117841,1751029834134,-549.7602963,0.00019178,2]
[368117842,1751029834143,-460.0,0.00019178,2]
[368117843,1751029834153,-460.0,0.00019178,2]
[368117844,1751029834163,-460.0,0.00019178,2]
[368117845,1751029834172,-460.0,0.00019178,2]
[368117846,1751029834183,-460.0,0.00019178,2]
[368117847,1751029834192,-462.95774099,0.00019178,2]
[368117848,1751029834202,-460.0,0.00019178,2]
[368117849,1751029834212,-460.0,0.00019178,2]
[368117850,1751029834222,-460.0,0.00019178,2]
[368117851,1751029834231,-460.0,0.00019178,2]
[368117852,1751029834240,-460.0,0.00019178,2]
[368117853,1751029834251,-404.9738552,0.00019178,2]
[368117854,1751029834260,-460.0,0.00019178,2]
[368117855,1751029834270,-460.0,0.00019178,2]
[368117856,1751029834280,-460.0,0.00019178,2]
[368117857,1751029834289,-460.0,0.00019178,2]
[368117858,1751029834300,-411.09944615,0.00019178,2]
[368117859,1751029834310,-460.0,0.00019178,2]
[368117860,1751029834320,-460.0,0.00019178,2]
[368117861,1751029834330,-460.0,0.00019178,2]
[368117862,1751029834341,-431.08917549,0.00019178,2]
[368117863,1751029834350,-460.0,0.00019178,2]
[368117864,1751029834360,-460.0,0.00019178,2]
[368117865,1751029834370,-460.0,0.00019178,2]
[368117866,1751029834379,-460.0,0.00019178,2]
[368117867,1751029834391,-460.0,0.00019178,2]
[368117868,1751029834401,-460.0,0.00019178,2]
[368117869,1751029834411,-540.95113274,0.00019178,2]
[368117870,1751029834421,-460.0,0.00019178,2]
[368117871,1751029834430,-475.33609645,0.00019178,2]
[368117872,1751029834441,-460.0,0.00019178,2]
[368117873,1751029834450,-460.0,0.00019178,2]
[368117874,1751029834460,-460.0,0.00019178,2]
[368117875,1751029834469,-460.0,0.00019178,2]
[368117876,1751029834480,-872.16,0.00019178,2]
[368117877,1751029834490,-460.0,0.00019178,2]
[368117878,1751029834500,-460.0,0.00019178,2]
[368117879,1751029834510,-460.0,0.00019178,2]
[368117880,1751029834519,-490.28,0.00019178,2]
[368117881,1751029834529,-460.0,0.00019178,2]
[368117882,1751029834538,-460.0,0.00019178,2]
[368117883,1751029834548,-460.0,0.00019178,2]
[368117884,1751029834558,-430.0,0.00019178,2]
[368117885,1751029834567,-460.0,0.00019178,2]
[368117886,1751029834577,-460.0,0.00019178,2]
[368117887,1751029834587,-460.0,0.00019178,2]
[368117888,1751029834596,-460.0,0.00019178,2]
[368117889,1751029834606,-209.67733656,0.00019178,2]
[368117890,1751029834615,-460.0,0.00019178,2]
[368117891,1751029834625,-460.0,0.00019178,2]
[368117892,1751029834635,-460.0,0.00019178,2]
[368117893,1751029834644,-460.0,0.00019178,2]
[368117894,1751029834654,-349.56630587,0.00019178,2]
[368117895,1751029834664,-460.0,0.00019178,2]
[368117896,1751029834673,-508.17363053,0.00019178,2]
[368117897,1751029834684,-460.0,0.00019178,2]
[368117898,1751029834694,-460.0,0.00019178,2]
[368117899,1751029834703,-460.0,0.00019178,2]
[368117900,1751029834713,-460.0,0.00019178,2]
[368117901,1751029834723,-460.0,0.00019178,2]
[368117902,1751029834733,-460.84183338,0.00019178,2]
[368117903,1751029834743,-460.0,0.00019178,2]
[368117904,1751029834753,-231.71942229,0.00019178,2]
[368117905,1751029834764,-460.0,0.00019178,2]
[368117906,1751029834774,-676.53,0.00019178,2]
[368117907,1751029834783,-3577.22,0.00019178,2]
[368117908,1751029834960,-460.0,0.00019178,2]
[368117909,1751029834970,-460.0,0.00019178,2]
[368117910,1751029834980,-460.0,0.00019178,2]
[368117911,1751029834989,-460.0,0.00019178,2]
[368117912,1751029834999,-460.0,0.00019178,2]
[368117913,1751029835008,-460.0,0.00019178,2]
[368117914,1751029835018,-1544.03,0.00019178,2]
[368117915,1751029835027,-460.0,0.00019178,2]
[368117916,1751029835036,-1861.18,0.00019178,2]
[368117917,1751029835046,-460.0,0.00019178,2]
[368117918,1751029835055,-460.0,0.00019178,2]
[368117919,1751029835065,-588.65306472,0.00019178,2]
[368117920,1751029835074,-460.0,0.00019178,2]
[368117921,1751029835083,-460.0,0.00019178,2]
[368117922,1751029835093,-2946.71,0.00019178,2]
[368117923,1751029835102,-345.08535438,0.00019178,2]
[368117924,1751029835113,-460.0,0.00019178,2]
[368117925,1751029835122,-460.0,0.00019178,2]
[368117926,1751029835131,-461.12077121,0.00019178,2]
[368117927,1751029835141,-460.0,0.00019178,2]
[368117928,1751029835150,-340.69132952,0.00019178,2]
[368117929,1751029835159,-460.34964683,0.00019178,2]
[368117930,1751029835168,-460.0,0.00019178,2]
[368117931,1751029835177,-460.0,0.00019178,2]
[368117932,1751029835187,-460.0,0.00019178,2]
[368117933,1751029835196,-442.78848297,0.00019178,2]
[368117934,1751029835205,-460.0,0.00019178,2]
[368117935,1751029835215,-460.0,0.00019178,2]
[368117936,1751029835224,-460.0,0.00019178,2]
[368117937,1751029835234,-460.0,0.00019178,2]
[368117938,1751029835244,-6518.4,0.00019178,2]
[368117939,1751029835254,-460.0,0.00019178,2]
[368117940,1751029835263,-461.83480314,0.00019178,2]
[368117941,1751029835272,-433.58578034,0.00019178,2]
[368117942,1751029835281,-460.0,0.00019178,2]
[368117943,1751029835290,-460.0,0.00019178,2]
[368117944,1751029835300,-1266.37,0.00019178,2]
[368117945,1751029835309,-1132.2,0.00019178,2]
[368117946,1751029835319,-460.0,0.00019178,2]
[368117947,1751029835329,-460.0,0.00019178,2]
[368117948,1751029835339,-460.0,0.00019178,2]
[368117949,1751029835348,-407.75375632,0.00019178,2]
[368117950,1751029835357,-765.43,0.00019178,2]
[368117951,1751029835367,-460.0,0.00019178,2]
[368117952,1751029835376,-403.83859209,0.00019178,2]
[368117953,1751029835386,-460.0,0.00019178,2]
[368117954,1751029835395,-433.84638978,0.00019178,2]
[368117955,1751029835404,-460.0,0.00019178,2]
[368117956,1751029835414,-460.0,0.00019178,2]
[368117957,1751029835423,-460.0,0.00019178,2]
[368117958,1751029835433,-848.57,0.00019178,2]
[368117959,1751029835442,-460.0,0.00019178,2]
[368117960,1751029835451,-460.0,0.00019178,2]
[368117961,1751029835462,-460.0,0.00019178,2]
[368117962,1751029835471,-5598.03,0.00019178,2]
[368117963,1751029835480,-460.0,0.00019178,2]
[368117964,1751029835490,-460.0,0.00019178,2]
[368117965,1751029835499,-807.46,0.00019178,2]
[368117966,1751029835508,-2217.11,0.00019178,2]
[368117967,1751029835517,-253.19146181,0.00019178,2]
[368117968,1751029835526,-460.0,0.00019178,2]
[368117969,1751029835536,-401.80699941,0.00019178,2]
[368117970,1751029835545,-851.26,0.00019178,2]
[368117971,1751029835554,-1687.24,0.00019178,2]
[368117972,1751029835563,-460.0,0.00019178,2]
[368117973,1751029835573,-460.0,0.00019178,2]
[368117974,1751029835585,-1257.06971001,0.00019178,2]
[368117975,1751029835595,-460.0,0.00019178,2]
[368117976,1751029835605,-460.0,0.00019178,2]
[368117977,1751029835614,-464.33,0.00019178,2]
[368117978,1751029835623,-460.0,0.00019178,2]
[368117979,1751029835632,-682.9,0.00019178,2]
[368117980,1751029835641,-460.0,0.00019178,2]
[368117981,1751029835651,-460.0,0.00019178,2]
[368117982,1751029835660,-460.0,0.00019178,2]
[368117983,1751029835670,-602.20737888,0.00019178,2]
[368117984,1751029835679,-460.0,0.00019178,2]
[368117985,1751029835688,-460.0,0.00019178,2]
[368117986,1751029835697,-460.0,0.00019178,2]
[368117987,1751029835707,-460.0,0.00019178,2]
[368117988,1751029835718,-460.0,0.00019178,2]
[368117989,1751029835727,-410.0,0.00019178,2]
[368117990,1751029835737,-460.0,0.00019178,2]
[368117991,1751029835746,-333.81923705,0.00019178,2]
[368117992,1751029835755,-159.11843545,0.00019178,2]
[368117993,1751029835764,-467.06552536,0.00019178,2]
[368117994,1751029835774,-460.0,0.00019178,2]
[368117995,1751029835783,-460.0,0.00019178,2]
[368117996,1751029835793,-460.0,0.00019178,2]
[368117997,1751029835802,-460.0,0.00019178,2]
[368117998,1751029835813,-460.0,0.00019178,2]
[368117999,1751029835823,-460.0,0.00019178,2]
[368118000,1751029835836,-460.0,0.00019178,2]
[368118001,1751029835846,-460.0,0.00019178,2]
[368118002,1751029835855,-626.65,0.00019178,2]
[368118003,1751029835865,-778.42,0.00019178,2]
[368118004,1751029835875,-1807.73,0.00019178,2]